bitfinex/quotes_SOLUSD_20241117
["timestamp","ask_amount","ask_price","bid_price","bid_amount"]
[1731843455726,0.1,238.0,237.95,0.4744822]
[1731843456612,23.776884,238.02,237.95,0.4744822]
[1731843456613,0.1,237.96,237.95,0.4744822]
[1731843458644,2.2011,237.96,237.95,0.4744822]
[1731843459025,25.977984,237.96,237.95,0.4744822]
[1731843460047,23.876884,237.96,237.95,0.4744822]
[1731843460344,0.1,237.98,237.95,0.4744822]
[1731843461547,0.1,238.0,237.95,0.4744822]
[1731843461917,0.1,238.0,237.96,4.2023]
[1731843462121,0.1,238.03,237.95,0.4744822]
[1731843462322,0.1,238.01,237.95,0.4744822]
[1731843462849,0.1,238.01,237.95,4.6768822]
[1731843463035,0.1,238.03,237.95,15.1832822]
[1731843463437,0.1,238.01,237.95,15.1832822]
[1731843463748,0.1,238.03,237.95,15.1832822]
[1731843464141,0.1,238.01,237.95,15.1832822]
[1731843465500,0.1,238.01,237.95,0.4744822]
[1731843465501,0.1,237.96,237.95,0.4744822]
[1731843466443,23.876884,237.96,237.95,0.4744822]
[1731843466646,43.97055862,237.96,237.95,0.4744822]
[1731843467327,46.07165862,237.96,237.95,0.4744822]
[1731843468323,46.19714862,237.96,237.95,0.4744822]
[1731843468549,46.32263862,237.96,237.95,0.4744822]
[1731843469288,0.1,237.95,237.78,10.5136]
[1731843469459,0.1,237.82,237.73,14.7222]
[1731843470243,23.776884,237.81,237.73,14.7222]
[1731843470454,0.1,237.8,237.73,14.7222]
[1731843470745,23.776884,237.81,237.73,14.7222]
[1731843471050,20.1,237.95,237.73,14.7222]
[1731843471051,0.1,237.86,237.73,14.7222]
[1731843471442,0.1,237.84,237.73,14.7222]
[1731843471643,2.1021,237.86,237.73,14.7222]
[1731843471842,20.22549,237.96,237.73,14.7222]
[1731843471843,0.1,237.89,237.73,14.7222]
[1731843472041,0.1,237.89,237.74,0.25098]
[1731843472042,2.2018,237.89,237.74,0.25098]
[1731843472265,0.1,237.87,237.74,0.25098]
[1731843472937,2.1018,237.89,237.74,0.25098]
[1731843472938,0.1,237.91,237.74,0.25098]
[1731843473131,0.1,237.89,237.74,0.25098]
[1731843473446,0.1,237.87,237.74,0.25098]
[1731843474357,23.876884,237.85,237.75,10.5152]
[1731843474548,0.1,237.85,237.75,10.5152]
[1731843474932,2.2017,237.91,237.75,10.5152]
[1731843475138,0.1,237.87,237.75,10.5152]
[1731843475454,2.1017,237.91,237.75,10.5152]
[1731843475455,0.1,237.83,237.75,10.5152]
[1731843475682,0.1,237.81,237.75,10.5152]
[1731843476739,20.0,237.9,237.75,10.5152]
[1731843476740,0.1,237.83,237.75,10.5152]
[1731843476953,0.1,237.82,237.76,0.12549]
[1731843477657,0.1,237.84,237.76,0.25098]
[1731843478044,0.1,237.82,237.76,0.25098]
[1731843478559,25.878984,237.86,237.75,10.5152]
[1731843478560,0.1,237.8,237.75,14.7212]
[1731843478755,0.1,237.82,237.75,14.7212]
[1731843479642,0.1,237.82,237.76,0.12549]
[1731843479955,0.1,237.8,237.76,0.12549]
[1731843480259,2.2023,237.84,237.76,0.12549]
[1731843480559,0.1,237.81,237.76,0.12549]
[1731843480750,2.1023,237.84,237.71,0.4744822]
[1731843480751,0.1,237.75,237.71,0.4744822]
[1731843480954,0.1,237.73,237.71,0.4744822]
[1731843483152,0.1,237.75,237.71,0.4744822]
[1731843483354,0.1,237.73,237.72,0.12549]
[1731843484357,0.1,237.73,237.71,0.4744822]
[1731843485549,25.880184,237.72,237.71,0.4744822]
[1731843485941,45.97385862,237.72,237.71,0.4744822]
[1731843486173,46.19934862,237.72,237.71,0.4744822]
[1731843486750,46.29934862,237.72,237.71,0.4744822]
[1731843487267,0.1,237.59,237.55,10.5238]
[1731843487874,0.1,237.61,237.55,14.7334]
[1731843488082,0.1,237.59,237.55,14.7334]
[1731843488253,43.776884,237.71,237.55,14.7334]
[1731843488254,0.1,237.62,237.56,0.12549]
[1731843488873,0.1,237.59,237.56,0.12549]
[1731843489372,43.776884,237.71,237.51,4.2102]
[1731843489373,0.1,237.57,237.51,4.2102]
[1731843489567,0.1,237.54,237.5,10.5261]
[1731843490145,0.1,237.52,237.49,7.87800139]
[1731843490354,0.1,237.5,237.49,7.87800139]
[1731843491653,23.876884,237.5,237.49,7.87800139]
[1731843493946,0.1,237.5,237.49,7.87800139]
[1731843495147,23.876884,237.5,237.49,7.87800139]
[1731843495464,25.982184,237.5,237.41,4.212]
[1731843495770,0.1,237.48,237.38,10.5316]
[1731843496068,0.1,237.48,237.42,4.2118]
[1731843496455,0.1,237.48,237.38,10.5316]
[1731843496673,0.1,237.48,237.44,4.2114]
[1731843496859,0.1,237.48,237.42,4.2118]
[1731843497061,0.1,237.48,237.38,10.5316]
[1731843497283,0.1,237.5,237.42,10.5294]
[1731843497464,0.1,237.48,237.42,10.5294]
[1731843497707,2.1049,237.54,237.42,10.5294]
[1731843497708,0.1,237.51,237.42,10.5294]
[1731843497872,0.1,237.48,237.42,10.5294]
[1731843498072,22.5494,237.59,237.35,21.0653]
[1731843498073,0.1,237.55,237.47,4.6853822]
[1731843498263,0.1,237.51,237.47,4.6853822]
[1731843498570,22.5494,237.59,237.47,15.2129822]
[1731843498571,0.1,237.54,237.47,15.2129822]
[1731843498775,0.1,237.49,237.47,15.2129822]
[1731843499071,0.1,237.55,237.47,15.2129822]
[1731843499376,0.1,237.51,237.47,11.0020822]
[1731843499575,0.1,237.54,237.47,11.0020822]
[1731843499868,0.1,237.5,237.47,0.4744822]
[1731843500057,0.1,237.48,237.47,0.4744822]
[1731843501960,23.876884,237.48,237.47,0.4744822]
[1731843504852,0.1,237.48,237.47,0.4744822]
[1731843507686,6.3711,237.58,237.47,0.4744822]
[1731843507687,0.1,237.5,237.47,4.6853822]
[1731843507864,0.1,237.52,237.47,4.8108722]
[1731843508077,0.1,237.53,237.47,4.8108722]
[1731843508379,0.1,237.52,237.47,0.4744822]
[1731843508575,0.1,237.48,237.47,0.4744822]
[1731843510589,0.1,237.53,237.48,0.12549]
[1731843510972,0.1,237.5,237.48,0.12549]
[1731843511392,0.1,237.48,237.47,0.4744822]
[1731843512581,0.1,237.51,237.47,0.4744822]
[1731843512776,2.1051,237.52,237.47,0.4744822]
[1731843512777,0.1,237.52,237.47,0.4744822]
[1731843513098,0.1,237.54,237.48,0.25098]
[1731843514094,22.8966,237.64,237.48,0.25098]
[1731843514095,0.1,237.58,237.48,0.25098]
[1731843514388,0.1,237.58,237.5,0.25098]
[1731843514760,0.1,237.6,237.5,0.25098]
[1731843515077,2.104,237.64,237.5,0.25098]
[1731843515078,0.1,237.64,237.51,0.1]
[1731843515262,0.1,237.62,237.53,0.25098]
[1731843515966,0.1,237.62,237.55,0.25098]
[1731843516286,0.1,237.72,237.57,14.7324]
[1731843516595,0.1,237.65,237.58,0.12549]
[1731843516881,0.1,237.64,237.58,0.12549]
[1731843517784,2.1031,237.75,237.54,15.9436]
[1731843517785,0.1,237.66,237.6,0.12549]
[1731843518791,0.1,237.71,237.6,0.25098]
[1731843519581,0.1,237.72,237.6,0.25098]
[1731843519788,0.1,237.72,237.62,0.25098]
[1731843520084,18.7381,237.77,237.62,0.25098]
[1731843520085,0.1,237.73,237.62,0.25098]
[1731843520666,0.1,237.76,237.65,0.12549]
[1731843520864,0.1,237.76,237.65,0.25098]
[1731843521084,0.1,237.74,237.65,0.25098]
[1731843521281,0.1,237.76,237.65,0.25098]
[1731843521484,0.1,237.82,237.67,0.35098]
[1731843521685,0.1,237.8,237.67,0.35098]
[1731843522078,0.1,237.82,237.69,0.1]
[1731843522279,0.1,237.82,237.67,0.25098]
[1731843522486,0.1,237.73,237.67,0.25098]
[1731843522786,0.1,237.73,237.68,10.5183]
[1731843523865,0.1,237.75,237.68,10.5183]
[1731843524378,0.1,237.7,237.69,0.12549]
[1731843524702,0.1,237.66,237.56,14.733]
[1731843524906,0.1,237.63,237.56,14.733]
[1731843525266,0.1,237.63,237.56,10.5236]
[1731843525587,0.1,237.58,237.52,4.2101]
[1731843526586,0.1,237.58,237.53,0.12549]
[1731843526790,0.1,237.58,237.52,0.12549]
[1731843528098,0.1,237.6,237.52,0.12549]
[1731843528278,2.1042,237.62,237.52,0.12549]
[1731843528279,0.1,237.57,237.52,0.12549]
[1731843528980,2.2045,237.59,237.51,10.5258]
[1731843529169,0.1,237.54,237.51,10.5258]
[1731843529376,0.1,237.51,237.47,0.4744822]
[1731843529694,0.1,237.48,237.47,0.4744822]
[1731843530572,0.1,237.5,237.47,0.4744822]
[1731843530792,0.1,237.48,237.47,0.4744822]
[1731843532890,0.1,237.5,237.47,0.4744822]
[1731843533072,0.1,237.48,237.47,0.4744822]
[1731843533478,0.1,237.5,237.47,0.4744822]
[1731843533675,0.1,237.48,237.47,0.4744822]
[1731843539592,0.1,237.55,237.48,0.12549]
[1731843540421,0.1,237.52,237.48,0.12549]
[1731843540778,0.1,237.56,237.48,0.25098]
[1731843541602,0.1,237.56,237.5,0.25098]
[1731843541795,0.1,237.58,237.5,0.25098]
[1731843542374,0.1,237.56,237.5,0.25098]
[1731843542805,0.1,237.59,237.5,0.25098]
[1731843542992,0.1,237.57,237.5,0.25098]
[1731843543292,0.1,237.57,237.5,0.12549]
[1731843543610,0.1,237.48,237.47,0.4744822]
[1731843545788,25.982284,237.48,237.47,0.4744822]
[1731843551404,46.082284,237.48,237.47,0.4744822]
[1731843551603,45.982284,237.48,237.47,0.4744822]
[1731843552101,46.207774,237.48,237.47,0.4744822]
[1731843552302,46.30144862,237.48,237.47,0.4744822]
[1731843552486,0.1,237.33,237.29,10.5354]
[1731843552707,0.1,237.31,237.29,10.5354]
[1731843553005,0.1,237.31,237.29,14.7496]
[1731843553506,0.1,237.31,237.29,10.5354]
[1731843554502,0.1,237.29,237.26,4.2147]
[1731843555182,0.1,237.36,237.26,14.7516]
[1731843555503,0.1,237.39,237.26,35.9255]
[1731843555683,0.1,237.31,237.26,14.7516]
[1731843556001,0.1,237.31,237.27,0.12549]
[1731843556218,0.1,237.31,237.29,0.12549]
[1731843556590,0.1,237.39,237.29,0.25098]
[1731843556903,0.1,237.35,237.29,0.12549]
[1731843557102,0.1,237.32,237.29,0.12549]
[1731843557905,0.1,237.32,237.28,14.7504]
[1731843558088,0.1,237.32,237.28,10.536]
[1731843559197,0.1,237.29,237.28,10.536]
[1731843560286,0.1,237.27,237.24,4.2151]
[1731843560608,0.1,237.27,237.25,0.12549]
[1731843560817,0.1,237.29,237.25,0.12549]
[1731843560996,0.1,237.27,237.25,0.12549]
[1731843561195,0.1,237.27,237.24,10.5378]
[1731843561509,0.1,237.25,237.24,10.5378]
[1731843563997,0.1,237.25,237.24,14.7529]
[1731843565608,23.776884,237.31,237.24,14.7529]
[1731843565609,0.1,237.27,237.24,14.7529]
[1731843565912,0.1,237.25,237.24,14.7529]
[1731843566418,0.1,237.25,237.24,10.5378]
[1731843567613,0.1,237.25,237.24,14.7529]
[1731843567991,0.1,237.27,237.25,0.12549]
[1731843568393,0.1,237.29,237.25,0.12549]
[1731843568619,15.5422,237.34,237.24,14.7528]
[1731843568620,0.1,237.27,237.24,14.7528]
[1731843569117,0.1,237.25,237.24,10.5378]
[1731843571698,0.1,237.25,237.24,9.95756005]
[1731843576130,0.1,237.25,237.23,0.4744822]
[1731843578724,23.876884,237.25,237.23,0.4744822]
[1731843579100,2.1075,237.24,237.23,0.4744822]
[1731843579303,25.884384,237.24,237.23,0.4744822]
[1731843580319,0.1,237.11,237.01,0.1]
[1731843580524,0.1,237.12,237.01,0.1]
[1731843580726,0.1,237.12,237.02,14.7666]
[1731843580899,0.1,237.1,237.02,14.7666]
[1731843581712,0.1,237.1,237.02,35.8618]
[1731843581905,0.1,237.1,237.02,14.7666]
[1731843582109,0.1,237.08,237.02,14.7666]
[1731843582622,0.1,237.08,237.02,10.5476]
[1731843583004,0.1,237.05,237.02,10.5476]
[1731843583194,0.1,237.07,237.02,10.5476]
[1731843583397,0.1,237.04,237.02,10.5476]
[1731843583615,0.1,237.11,237.02,10.5476]
[1731843583920,0.1,237.07,237.02,10.5476]
[1731843584126,0.1,237.04,237.02,10.5476]
[1731843584624,0.1,237.04,237.03,0.12549]
[1731843584827,0.1,237.04,237.02,10.5476]
[1731843585004,0.1,237.06,237.02,10.5476]
[1731843585194,0.1,237.04,237.02,10.5476]
[1731843585394,20.0,237.19,237.02,10.5476]
[1731843585395,23.876884,237.12,237.02,10.5476]
[1731843585627,0.1,237.07,237.02,10.5476]
[1731843585805,0.1,237.04,237.02,10.5476]
[1731843586516,39.043384,237.12,237.02,10.5476]
[1731843586517,0.1,237.03,237.02,10.5476]
[1731843587228,0.1,237.09,237.02,10.5476]
[1731843587398,0.1,237.03,237.02,10.67309]
[1731843588013,2.1089,237.09,237.02,10.67309]
[1731843588014,2.2089,237.09,237.02,10.67309]
[1731843588303,0.1,237.03,237.02,10.67309]
[1731843588726,0.1,237.0,236.99,0.4744822]
[1731843592001,0.1,237.02,237.0,4.2194]
[1731843592203,0.1,237.02,237.0,3.7194]
[1731843592464,0.1,237.02,236.99,0.4744822]
[1731843593365,0.1,237.06,236.99,0.4744822]
[1731843593504,0.1,237.06,237.0,14.7679]
[1731843593700,0.1,237.06,237.0,10.53795548]
[1731843594112,2.2089,237.09,237.0,10.53795548]
[1731843594322,0.1,237.05,237.0,10.53795548]
[1731843594529,0.1,237.06,237.0,10.53795548]
[1731843594721,0.1,237.03,236.99,0.4744822]
[1731843594912,0.1,237.0,236.99,0.4744822]
[1731843596522,25.986584,237.0,236.99,0.4744822]
[1731843600224,25.986584,237.0,236.79,0.1]
[1731843600429,0.1,236.9,236.82,6.3931]
[1731843600606,0.1,236.94,236.82,6.2931]
[1731843600810,0.1,236.9,236.82,6.2931]
[1731843601012,0.1,236.88,236.82,6.2931]
[1731843601212,0.1,236.88,236.84,10.5556]
[1731843601428,0.1,236.93,236.84,10.5556]
[1731843601633,0.1,236.88,236.84,10.5556]
[1731843602019,0.1,236.91,236.84,10.5556]
[1731843603138,0.1,236.95,236.85,0.25098]
[1731843603338,0.1,236.93,236.84,10.5556]
[1731843603637,0.1,236.9,236.84,10.5556]
[1731843604106,0.1,236.94,236.85,0.12549]
[1731843605238,0.1,236.92,236.86,14.7766]
[1731843605414,2.11,236.97,236.86,14.7766]
[1731843605415,0.1,236.91,236.86,14.7766]
[1731843606824,0.1,236.93,236.86,14.7766]
[1731843607319,0.1,236.99,236.87,0.25098]
[1731843607533,0.1,236.96,236.87,0.12549]
[1731843607737,0.1,236.94,236.87,0.12549]
[1731843608045,0.1,237.0,236.88,0.22549]
[1731843608240,0.1,236.97,236.87,5.93359048]
[1731843608540,0.1,236.97,236.87,0.25098]
[1731843609034,0.1,237.01,236.89,0.12549]
[1731843609244,0.1,237.01,236.92,0.1]
[1731843610416,0.1,237.01,236.93,14.7722]
[1731843610618,15.1467,237.07,236.96,0.1]
[1731843610941,0.1,237.06,236.97,0.12549]
[1731843611333,0.1,237.06,236.94,6.2931]
[1731843611650,0.1,237.04,236.95,0.12549]
[1731843611844,15.1467,237.13,236.95,0.12549]
[1731843611845,0.1,237.06,236.95,0.25098]
[1731843612030,0.1,237.06,236.95,0.12549]
[1731843612625,0.1,237.06,236.96,14.7704]
[1731843612839,0.1,237.04,236.97,0.12549]
[1731843613048,0.1,237.05,236.97,0.12549]
[1731843613227,0.1,237.03,236.97,0.12549]
[1731843613626,0.1,237.04,236.97,0.12549]
[1731843614032,0.1,237.07,236.97,0.12549]
[1731843614340,2.1088,237.1,236.97,0.12549]
[1731843614341,0.1,237.03,236.97,0.12549]
[1731843614572,0.1,237.06,236.97,0.12549]
[1731843614761,0.1,237.04,236.98,14.7691]
[1731843615129,0.1,237.06,236.98,14.7691]
[1731843615328,0.1,237.04,236.98,14.7691]
[1731843615735,0.1,236.95,236.92,10.5516]
[1731843615931,0.1,236.96,236.92,10.5516]
[1731843616451,0.1,236.93,236.92,10.5516]
[1731843616948,0.1,236.93,236.84,0.1]
[1731843617252,0.1,237.03,236.88,0.1]
[1731843617626,0.1,237.02,236.88,0.1]
[1731843617833,0.1,237.04,236.88,0.1]
[1731843618049,0.1,237.06,236.94,0.1]
[1731843618251,0.1,237.05,236.91,0.1]
[1731843618545,0.1,237.06,236.91,0.1]
[1731843618741,2.109,237.08,236.91,0.1]
[1731843618742,0.1,237.05,236.91,0.1]
[1731843618945,0.1,237.02,236.93,0.12549]
[1731843619142,0.1,237.05,236.93,0.12549]
[1731843619334,0.1,237.05,236.93,0.35098]
[1731843619549,0.1,237.08,236.94,0.12549]
[1731843619838,0.1,237.05,236.95,0.1]
[1731843620051,0.1,237.08,236.95,0.1]
[1731843620248,0.1,237.05,236.95,0.1]
[1731843620649,0.1,237.05,236.95,0.22549]
[1731843620834,0.1,237.05,236.96,15.02138]
[1731843621559,0.1,237.05,236.96,14.89589]
[1731843621731,0.1,236.99,236.96,14.7704]
[1731843621950,0.1,237.02,236.96,14.7704]
[1731843622751,0.1,236.99,236.88,0.1]
[1731843622954,0.1,236.99,236.9,0.1]
[1731843623159,0.1,236.99,236.89,4.2213]
[1731843623160,0.1,237.0,236.89,14.7747]
[1731843623649,0.1,236.98,236.89,14.7747]
[1731843623853,0.1,237.02,236.92,0.1]
[1731843624434,0.1,237.0,236.92,0.1]
[1731843624650,0.1,237.02,236.92,0.1]
[1731843624843,0.1,237.0,236.92,0.1]
[1731843625240,0.1,237.02,236.93,14.7722]
[1731843625533,0.1,237.02,236.94,0.12549]
[1731843626258,0.1,236.96,236.93,14.7722]
[1731843626431,0.1,236.96,236.88,14.7752]
[1731843627049,2.2101,236.96,236.88,14.7752]
[1731843627246,0.1,236.9,236.88,14.7752]
[1731843627731,5.2735,237.04,236.88,14.7752]
[1731843627732,0.1,236.92,236.88,14.7752]
[1731843627931,0.1,236.94,236.88,14.7752]
[1731843628140,0.1,236.92,236.88,14.7752]
[1731843628738,0.1,236.94,236.88,10.5537]
[1731843629538,0.1,236.96,236.89,0.12549]
[1731843629855,0.1,236.93,236.89,0.12549]
[1731843630359,0.1,236.95,236.89,0.12549]
[1731843631158,0.1,237.0,236.91,0.1]
[1731843632747,0.1,236.98,236.91,0.1]
[1731843632965,0.1,236.98,236.84,27.34931532]
[1731843632966,0.1,236.95,236.86,0.1]
[1731843633345,0.1,236.93,236.86,0.1]
[1731843633667,0.1,236.93,236.84,0.1]
[1731843633839,0.1,236.93,236.86,0.25098]
[1731843634158,2.1097,237.0,236.86,0.25098]
[1731843634159,0.1,236.94,236.86,0.25098]
[1731843634665,0.1,236.93,236.86,0.25098]
[1731843635053,0.1,236.87,236.84,5.63892073]
[1731843635245,0.1,236.87,236.81,0.1]
[1731843636261,0.1,236.89,236.81,0.1]
[1731843636468,0.1,236.87,236.81,0.1]
[1731843637143,0.1,236.89,236.82,14.7791]
[1731843637505,0.1,236.87,236.82,14.7791]
[1731843637764,0.1,236.95,236.87,0.1]
[1731843637963,0.1,236.92,236.85,0.1]
[1731843638166,0.1,236.92,236.84,0.25098]
[1731843638464,0.1,236.88,236.83,9.25732943]
[1731843638763,0.1,236.88,236.83,19.81332943]
[1731843639374,0.1,236.9,236.84,0.84406241]
[1731843639545,0.1,236.9,236.84,0.12549]
[1731843639745,0.1,236.88,236.84,0.12549]
[1731843640268,0.1,236.89,236.83,14.7783]
[1731843640445,0.1,236.86,236.83,10.556]
[1731843640768,0.1,236.84,236.83,10.556]
[1731843641067,0.1,236.88,236.83,14.7784]
[1731843641242,0.1,236.85,236.83,14.7784]
[1731843641442,20.0,236.99,236.83,14.7784]
[1731843641443,0.1,236.88,236.83,14.7784]
[1731843641643,0.1,236.85,236.83,10.556]
[1731843645256,0.1,236.85,236.8,9.54681832]
[1731843645471,0.1,236.83,236.8,5.32391832]
[1731843645848,0.1,236.81,236.8,5.32391832]
[1731843646347,15.4917,236.89,236.75,0.4744822]
[1731843646348,0.1,236.76,236.75,0.4744822]
[1731843646546,0.1,236.79,236.75,0.4744822]
[1731843646767,0.1,236.77,236.75,0.4744822]
[1731843646960,0.1,236.77,236.75,4.6982822]
[1731843647158,15.4917,236.89,236.72,3.94462437]
[1731843647476,17.6024,236.89,236.73,12.31161538]
[1731843647767,17.6024,236.89,236.75,0.1]
[1731843648491,15.4917,236.89,236.76,0.25098]
[1731843648780,15.4917,236.89,236.77,0.1]
[1731843649152,15.4917,236.89,236.76,0.25098]
[1731843649376,15.4917,236.89,236.77,14.7822]
[1731843649566,15.4917,236.89,236.78,0.25098]
[1731843650259,17.6024,236.89,236.78,0.25098]
[1731843651269,17.6024,236.89,236.8,0.12549]
[1731843651469,17.6024,236.89,236.77,14.7821]
[1731843651858,23.776884,236.88,236.77,10.5587]
[1731843653349,23.776884,236.86,236.77,10.5587]
[1731843653545,23.776884,236.86,236.74,4.224]
[1731843654973,17.6024,236.89,236.75,0.25098]
[1731843655472,15.4917,236.89,236.77,0.12549]
[1731843655671,15.4917,236.89,236.78,0.12549]
[1731843656258,15.4917,236.89,236.77,0.25098]
[1731843656666,15.4917,236.89,236.79,0.25098]
[1731843656876,2.1103,236.93,236.79,0.25098]
[1731843657572,24.6551,237.06,236.84,0.1]
[1731843657765,24.6551,237.06,236.82,0.1]
[1731843657958,0.1,237.02,236.85,0.25098]
[1731843658210,30.028,237.06,236.85,0.25098]
[1731843658367,22.546,237.06,236.9,0.1]
[1731843658570,22.546,237.06,236.92,0.1]
[1731843658882,24.6551,237.06,236.93,14.7722]
[1731843659175,0.1,237.05,236.93,10.5516]
[1731843659676,23.776884,237.04,236.93,10.5516]
[1731843660218,23.776884,237.05,236.93,10.5516]
[1731843660352,23.776884,237.05,236.86,20.39895925]
[1731843660353,23.776884,237.03,236.87,15.02698]
[1731843661259,2.1095,237.02,236.87,15.02698]
[1731843661453,23.776884,237.01,236.87,15.02698]
[1731843662482,2.1097,237.0,236.87,15.02698]
[1731843663676,2.1093,237.04,236.87,15.02698]
[1731843663860,2.1093,237.04,236.87,21.35329091]
[1731843664268,2.1093,237.04,236.88,6.22631091]
[1731843664580,2.1093,237.04,236.89,0.25098]
[1731843664967,2.1093,237.04,236.91,0.25098]
[1731843665167,2.1093,237.04,236.91,0.12549]
[1731843665472,2.1093,237.04,236.9,14.774]
[1731843665473,23.776884,237.03,236.9,14.774]
[1731843665981,23.776884,237.01,236.9,10.5529]
[1731843666665,23.776884,237.01,236.87,4.2217]
[1731843667270,23.776884,237.01,236.87,14.776]
[1731843667873,2.1097,237.0,236.87,14.776]
[1731843668073,23.776884,236.99,236.87,14.776]
[1731843668457,23.776884,236.99,236.88,0.12549]
[1731843669371,20.0,237.02,236.88,0.12549]
[1731843669618,20.0,237.02,236.89,4.2213]
[1731843669979,23.776884,237.01,236.89,14.7747]
[1731843670480,20.0,237.02,236.9,0.12549]
[1731843670481,23.776884,237.02,236.9,0.12549]
[1731843670673,2.1094,237.03,236.9,0.12549]
[1731843671392,0.1,236.99,236.84,10.5553]
[1731843671570,2.1098,236.98,236.84,10.5553]
[1731843671774,23.776884,236.97,236.84,10.5553]
[1731843671965,2.1098,236.98,236.84,10.5553]
[1731843672983,2.1098,236.98,236.85,0.25098]
[1731843673181,20.0,237.03,236.85,0.25098]
[1731843673407,23.776884,237.0,236.86,10.5547]
[1731843673678,20.2,236.99,236.82,9.88075765]
[1731843673888,23.776884,236.96,236.82,4.2224]
[1731843674066,23.876884,236.96,236.81,10.5569]
[1731843674275,23.776884,236.94,236.81,10.5569]
[1731843674778,23.776884,236.94,236.81,14.7796]
[1731843675365,2.1103,236.93,236.81,14.7796]
[1731843675670,23.776884,236.92,236.81,14.7796]
[1731843676368,23.776884,236.9,236.81,14.7796]
[1731843677373,25.887484,236.9,236.81,14.7796]
[1731843677572,16.2163,236.95,236.81,14.7796]
[1731843677778,16.2163,236.95,236.82,0.12549]
[1731843677779,2.1102,236.94,236.82,0.12549]
[1731843678076,23.776884,236.93,236.81,14.7796]
[1731843678982,23.876884,236.93,236.81,14.7796]
[1731843679168,23.776884,236.94,236.81,14.7796]
[1731843679369,23.776884,236.91,236.81,14.7796]
[1731843680493,20.0,236.88,236.73,4.2241]
[1731843680668,23.776884,236.87,236.73,4.2241]
[1731843681464,2.1109,236.86,236.73,14.7846]
[1731843681680,23.776884,236.85,236.73,14.7846]
[1731843681976,23.776884,236.91,236.73,14.7846]
[1731843682510,23.876884,236.91,236.73,14.7846]
[1731843682687,2.1104,236.92,236.75,0.25098]
[1731843683100,2.1104,236.92,236.76,14.7828]
[1731843683309,2.1104,236.92,236.77,0.12549]
[1731843683463,2.1104,236.92,236.76,14.7828]
[1731843683976,23.776884,236.91,236.76,14.7828]
[1731843684683,31.163284,236.92,236.76,14.7828]
[1731843685070,31.263284,236.92,236.76,14.7828]
[1731843685264,20.1,236.89,236.74,27.0313]
[1731843685478,23.776884,236.88,236.74,27.0313]
[1731843686288,23.776884,236.88,236.74,37.5914]
[1731843686794,23.776884,236.86,236.74,37.5914]
[1731843687476,23.776884,236.86,236.62,4.2261]
[1731843687477,43.776884,236.81,236.62,4.2261]
[1731843687681,23.776884,236.81,236.62,4.2261]
[1731843687886,23.776884,236.81,236.65,10.5641]
[1731843688565,2.1114,236.8,236.65,10.5641]
[1731843688765,15.9251,236.82,236.65,10.5641]
[1731843688987,2.1104,236.92,236.71,22.8928]